bitfinex-derivatives/quotes_BTCF0:USTF0_20210109
["timestamp","ask_amount","ask_price","bid_price","bid_amount"]
[1610189295723,0.13632608,40372.0,40362.0,0.02104959]
[1610189295924,0.13632608,40365.0,40364.0,0.13632608]
[1610189296124,4.0728,40381.0,40371.0,0.00024672]
[1610189296323,4.0728,40381.0,40364.0,0.15737536]
[1610189296524,4.0728,40381.0,40372.0,0.00024672]
[1610189296924,4.0728,40381.0,40365.0,0.02104936]
[1610189297125,4.0728,40381.0,40373.0,0.00024672]
[1610189297325,4.0728,40381.0,40365.0,0.02104936]
[1610189297729,4.0728,40381.0,40374.0,0.00024672]
[1610189297928,0.13632608,40375.0,40366.0,0.00024672]
[1610189298128,0.13632608,40375.0,40365.0,0.02104936]
[1610189298327,0.13632608,40375.0,40367.0,0.00024672]
[1610189298726,0.13632608,40375.0,40365.0,0.02104936]
[1610189298927,0.13632608,40375.0,40368.0,0.00024672]
[1610189299326,0.13632608,40375.0,40366.0,0.00024672]
[1610189299532,0.13632608,40375.0,40369.0,0.00024672]
[1610189299728,0.13632608,40375.0,40367.0,0.00024672]
[1610189299927,0.13632608,40368.0,40367.0,0.00024672]
[1610189300127,0.13632608,40368.0,40365.0,0.02080264]
[1610189300328,0.13632608,40368.0,40365.0,0.02104935]
[1610189304930,0.13632608,40368.0,40365.0,0.02080264]
[1610189305130,0.13632608,40368.0,40366.0,0.0002467]
[1610189305330,0.13632608,40368.0,40365.0,0.02104934]
[1610189305532,0.13632608,40368.0,40367.0,0.0002467]
[1610189305732,0.13632608,40368.0,40366.0,0.0002467]
[1610189305932,4.0728,40381.0,40366.0,0.0002467]
[1610189306132,0.15262214,40393.0,40367.0,0.0002467]
[1610189306533,0.15262214,40393.0,40367.0,0.02104526]
[1610189306733,0.15262214,40393.0,40377.0,3.8452]
[1610189306932,0.15262214,40393.0,40377.0,3.96449]
[1610189307132,0.15262214,40393.0,40378.0,0.0210433]
[1610189307734,0.15262214,40393.0,40378.0,0.06445815]
[1610189307934,0.13632608,40392.0,40390.0,0.13632608]
[1610189308136,0.13632608,40392.0,40390.0,0.54642608]
[1610189308534,0.13632608,40392.0,40390.0,0.13632608]
[1610189308734,0.13632608,40392.0,40391.0,2.9787]
[1610189308935,0.13632608,40392.0,40391.0,3.06828]
[1610189310538,0.15262214,40393.0,40391.0,3.06828]
[1610189311038,0.15262214,40393.0,40392.0,0.02103722]
[1610189315646,0.15262214,40393.0,40392.0,0.06443132]
[1610189317948,0.15262214,40393.0,40392.0,0.02103722]
[1610189319250,0.15262214,40393.0,40392.0,0.00024661]
[1610189319852,0.15262214,40393.0,40392.0,0.02032025]
[1610189320251,0.15262214,40393.0,40392.0,2.97254661]
[1610189321152,0.15262214,40393.0,40392.0,0.00024661]
[1610189322153,0.28894822,40393.0,40392.0,0.00024661]
[1610189322353,0.28894822,40393.0,40378.0,0.00024474]
[1610189322752,0.28894822,40393.0,40375.0,3.9932]
[1610189322753,3.28764822,40393.0,40375.0,3.9932]
[1610189322952,3.28764822,40393.0,40379.0,0.00024477]
[1610189323153,3.28764822,40393.0,40378.0,0.00024477]
[1610189323555,3.28764822,40393.0,40380.0,0.00024477]
[1610189323754,0.28894822,40393.0,40376.0,0.00024477]
[1610189323954,0.28894822,40393.0,40381.0,0.00024477]
[1610189324154,0.13632608,40386.0,40382.0,0.13632608]
[1610189324554,0.13632608,40386.0,40383.0,0.00024477]
[1610189328254,0.13632608,40386.0,40383.0,0.02033119]
[1610189329255,0.13632608,40386.0,40383.0,0.00024477]
[1610189329455,0.13632608,40386.0,40383.0,0.02033088]
[1610189330055,0.13632608,40386.0,40383.0,0.00024477]
[1610189330256,0.13632608,40386.0,40384.0,0.02033045]
[1610189330656,0.13632608,40386.0,40384.0,0.00024475]
[1610189330856,0.13632608,40386.0,40385.0,0.00024475]
[1610189331260,0.13632608,40386.0,40384.0,0.02008587]
[1610189331460,0.13632608,40386.0,40383.0,0.02033037]
[1610189331659,0.13632608,40386.0,40385.0,0.02033061]
[1610189331860,0.13632608,40386.0,40384.0,0.02033052]
[1610189332059,0.13632608,40386.0,40385.0,0.02033023]
[1610189332761,0.13632608,40386.0,40383.0,0.02033029]
[1610189332962,0.13632608,40386.0,40385.0,0.02033061]
[1610189333162,0.13632608,40386.0,40384.0,0.02033046]
[1610189333361,0.13632608,40386.0,40385.0,0.02008562]
[1610189333562,0.13632608,40386.0,40385.0,0.02033037]
[1610189333763,0.13632608,40386.0,40383.0,0.02033035]
[1610189333963,0.13632608,40386.0,40385.0,0.02033041]
[1610189334161,0.13632608,40386.0,40383.0,0.02033021]
[1610189334562,0.13632608,40386.0,40385.0,0.02033021]
[1610189334762,0.13632608,40386.0,40384.0,0.02033018]
[1610189334962,0.13632608,40386.0,40383.0,0.02033033]
[1610189335362,0.13632608,40386.0,40385.0,0.02032965]
[1610189335562,0.13632608,40386.0,40384.0,0.02032949]
[1610189335764,0.13632608,40386.0,40385.0,0.02032957]
[1610189336366,0.13632608,40386.0,40383.0,0.02032968]
[1610189336564,0.13632608,40386.0,40385.0,0.02032939]
[1610189336964,0.13632608,40386.0,40384.0,0.02032924]
[1610189337165,0.13632608,40386.0,40383.0,0.0203296]
[1610189337365,0.13632608,40386.0,40385.0,0.02032976]
[1610189337765,0.13632608,40386.0,40384.0,0.02033003]
[1610189337964,0.13632608,40386.0,40383.0,0.02033135]
[1610189338165,0.13632608,40386.0,40385.0,0.02033153]
[1610189338566,0.13632608,40386.0,40383.0,0.02033165]
[1610189338766,0.13632608,40386.0,40382.0,0.02033143]
[1610189338970,0.13632608,40386.0,40384.0,0.02033164]
[1610189339366,0.13632608,40386.0,40381.0,0.02033136]
[1610189339567,0.13632608,40386.0,40385.0,0.0203314]
[1610189339768,0.13632608,40386.0,40382.0,0.0203314]
[1610189339967,0.13632608,40386.0,40385.0,0.02033137]
[1610189340269,0.13632608,40386.0,40383.0,0.02033141]
[1610189340469,0.13632608,40386.0,40385.0,0.02008666]
[1610189340669,0.13632608,40386.0,40385.0,0.02033141]
[1610189340869,0.13632608,40386.0,40381.0,0.02033173]
[1610189341069,0.13632608,40386.0,40385.0,0.00024477]
[1610189341474,0.13632608,40386.0,40382.0,0.02033307]
[1610189341669,0.13632608,40386.0,40385.0,0.00024477]
[1610189341869,0.13632608,40386.0,40383.0,0.00024479]
[1610189342070,0.13632608,40386.0,40378.0,0.0203346]
[1610189342471,0.13632608,40379.0,40377.0,0.02008985]
[1610189342673,0.13632608,40379.0,40362.0,0.13632608]
[1610189342873,0.13632608,40379.0,40378.0,0.02033399]
[1610189343274,0.13632608,40379.0,40377.0,0.02033382]
[1610189343475,0.13632608,40379.0,40378.0,0.02027645]
[1610189343675,0.13632608,40379.0,40377.0,0.02027645]
[1610189344077,0.13632608,40379.0,40378.0,0.0202764]
[1610189344476,0.13632608,40379.0,40377.0,0.02027667]
[1610189344874,0.13632608,40379.0,40378.0,0.02027663]
[1610189345276,0.13632608,40379.0,40377.0,0.02027667]
[1610189345677,0.13632608,40379.0,40378.0,0.0202765]
[1610189346177,0.13632608,40379.0,40377.0,0.02027592]
[1610189346378,0.13632608,40379.0,40378.0,0.02027582]
[1610189346979,0.13632608,40379.0,40377.0,0.02027454]
[1610189347180,0.13632608,40379.0,40374.0,0.13632608]
[1610189347181,0.13632608,40379.0,40378.0,0.02027512]
[1610189347383,0.13632608,40379.0,40378.0,0.0200305]
[1610189347582,0.13632608,40379.0,40377.0,0.0202755]
[1610189347782,0.13632608,40379.0,40377.0,0.00024462]
[1610189347981,0.13632608,40379.0,40378.0,0.02027588]
[1610189348181,0.15262214,40393.0,40377.0,0.06262195]
[1610189348382,0.15262214,40393.0,40386.0,0.13632608]
[1610189348781,0.15262214,40393.0,40387.0,0.02027453]
[1610189350484,0.13632608,40388.0,40387.0,0.02027453]
[1610189363101,0.13632608,40388.0,40387.0,0.00024462]
[1610189363300,0.13632608,40388.0,40381.0,0.01928463]
[1610189363501,0.13632608,40388.0,40387.0,0.01928574]
[1610189363700,0.13632608,40388.0,40382.0,0.01928623]
[1610189363901,0.13632608,40388.0,40387.0,0.01904414]
[1610189364100,0.13632608,40388.0,40387.0,0.0192861]
[1610189364300,0.13632608,40388.0,40378.0,0.06024424]
[1610189364504,0.13632608,40379.0,40378.0,0.04095781]
[1610189365101,0.13632608,40379.0,40378.0,0.06024471]
[1610189366904,0.13632608,40379.0,40372.0,0.01928726]
[1610189367106,3.15752608,40379.0,40378.0,0.01928699]
[1610189367304,3.15752608,40379.0,40378.0,0.00024198]
[1610189367504,3.15752608,40379.0,40373.0,0.01928697]
[1610189367704,3.15752608,40379.0,40378.0,0.01928725]
[1610189367904,3.15752608,40379.0,40374.0,0.01928735]
[1610189368103,3.15752608,40379.0,40378.0,0.01928778]
[1610189368404,3.15752608,40379.0,40375.0,0.01928778]
[1610189368805,3.15752608,40379.0,40378.0,0.01928759]
[1610189369006,3.15752608,40379.0,40372.0,0.0192874]
[1610189369206,3.15752608,40379.0,40378.0,0.01928777]
[1610189369407,3.15752608,40379.0,40373.0,0.01928761]
[1610189369608,3.15752608,40379.0,40370.0,0.13632608]
[1610189369806,3.15752608,40379.0,40372.0,0.01928766]
[1610189370006,0.13632608,40379.0,40372.0,0.03857493]
[1610189370408,3.5024,40383.0,40377.0,0.13632608]
[1610189370807,3.5024,40383.0,40378.0,0.01928708]
[1610189371608,3.5024,40383.0,40373.0,0.01928708]
[1610189372410,0.13632608,40374.0,40373.0,0.01928708]
[1610189374314,0.72212608,40374.0,40373.0,0.01928708]
[1610189374514,0.13632608,40374.0,40373.0,0.01928708]
[1610189375114,3.20032608,40374.0,40373.0,0.01928708]
[1610189378019,0.13632608,40374.0,40373.0,0.01928708]
[1610189378419,0.11919,40378.0,40373.0,0.01928708]
[1610189378818,0.13632608,40374.0,40373.0,0.01928708]
[1610189379019,0.13632608,40374.0,40373.0,0.00024198]
[1610189379220,0.13632608,40374.0,40372.0,0.01928766]
[1610189379618,0.13632608,40374.0,40373.0,0.00024294]
[1610189379820,4.16952608,40374.0,40373.0,0.00024294]
[1610189380820,4.16952608,40374.0,40372.0,0.01928766]
[1610189381222,0.13632608,40374.0,40372.0,0.01928766]
[1610189381422,4.3659,40373.0,40372.0,8.766e-05]
[1610189382025,4.78021065,40373.0,40372.0,8.766e-05]
[1610189382627,4.37982381,40373.0,40372.0,8.766e-05]
[1610189383124,2.88685477,40373.0,40372.0,8.766e-05]
[1610189383325,2.86879261,40373.0,40372.0,8.766e-05]
[1610189383523,0.00289261,40373.0,40372.0,8.766e-05]
[1610189383725,0.13632608,40374.0,40372.0,8.766e-05]
[1610189385828,3.9131,40373.0,40372.0,8.766e-05]
[1610189388029,0.13632608,40374.0,40372.0,8.766e-05]
[1610189389032,0.13632608,40374.0,40360.0,0.00024126]
[1610189389431,0.13632608,40374.0,40348.0,3.85224126]
[1610189389631,0.13632608,40374.0,40348.0,0.01899887]
[1610189389833,0.13632608,40374.0,40361.0,0.00024126]
[1610189390030,0.13632608,40374.0,40349.0,0.00024126]
[1610189390230,0.13632608,40374.0,40362.0,0.00024126]
[1610189390630,0.13632608,40374.0,40350.0,0.00024126]
[1610189390832,0.13632608,40374.0,40363.0,0.00024126]
[1610189391031,0.13632608,40364.0,40351.0,3.4425]
[1610189391232,0.13632608,40364.0,40348.0,0.00024126]
[1610189391431,0.13632608,40364.0,40347.0,0.24703608]
[1610189391632,0.13632608,40364.0,40349.0,0.00024128]
[1610189391832,0.13632608,40364.0,40348.0,0.01900068]
[1610189392232,0.13632608,40364.0,40350.0,0.00024128]
[1610189392432,0.13632608,40364.0,40349.0,0.00024128]
[1610189392633,0.13632608,40364.0,40351.0,0.00024128]
[1610189393036,0.13632608,40352.0,40350.0,0.00024128]
[1610189393233,0.13632608,40352.0,40348.0,0.01900068]
[1610189393434,0.13632608,40352.0,40351.0,0.00024128]
[1610189393835,0.13632608,40352.0,40349.0,0.00024128]
[1610189394034,0.13632608,40352.0,40351.0,0.00024128]
[1610189394234,0.13632608,40352.0,40348.0,0.0187594]
[1610189394235,0.13632608,40352.0,40350.0,0.00024128]
[1610189394434,0.13632608,40352.0,40351.0,0.00024128]
[1610189395136,0.13632608,40352.0,40348.0,0.01900068]
[1610189395339,0.13632608,40352.0,40351.0,0.00024128]
[1610189395540,0.13632608,40352.0,40349.0,0.00024128]
[1610189395838,0.13632608,40352.0,40351.0,0.00024128]
[1610189396041,0.13632608,40352.0,40348.0,0.01900068]
[1610189396439,0.13632608,40352.0,40351.0,0.00024128]
[1610189396639,0.13632608,40352.0,40349.0,0.00024128]
[1610189396839,0.13632608,40352.0,40351.0,0.00024128]
[1610189397240,0.13632608,40352.0,40350.0,0.00024126]
[1610189397440,0.13632608,40352.0,40351.0,0.00024126]
[1610189398043,0.13632608,40352.0,40348.0,0.01900066]
[1610189404352,0.13632608,40352.0,40348.0,0.41750066]
[1610189404751,4.0068,40366.0,40349.0,0.06018923]
[1610189404952,0.13632608,40357.0,40355.0,0.13632608]
[1610189405352,0.13632608,40357.0,40356.0,0.01925918]
[1610189405551,0.13632608,40357.0,40356.0,0.13406918]
[1610189406654,0.11919,40378.0,40356.0,0.13406918]
[1610189406955,3.1792,40384.0,40362.0,0.13632608]
[1610189407154,3.1792,40384.0,40363.0,0.4779]
[1610189407355,0.277,40385.0,40362.0,0.13632608]
[1610189407356,0.277,40385.0,40364.0,0.06018258]
[1610189407555,0.277,40385.0,40366.0,3.4982]
[1610189407954,0.277,40385.0,40367.0,0.06018291]
[1610189408956,0.13632608,40372.0,40367.0,0.06018291]
[1610189411060,0.13632608,40372.0,40369.0,0.13632608]
[1610189411658,0.13632608,40372.0,40370.0,0.019255]
[1610189414560,0.13632608,40372.0,40366.0,3.72555646]
[1610189414760,0.13632608,40372.0,40371.0,0.01925694]
[1610189415163,0.13632608,40372.0,40367.0,0.06018157]
[1610189415360,0.13632608,40372.0,40367.0,0.01925705]
[1610189415561,0.13632608,40372.0,40368.0,0.01925712]
[1610189416064,0.13632608,40372.0,40367.0,0.01925712]
[1610189416862,0.13632608,40372.0,40369.0,3.3742]
[1610189417262,0.11225,40387.0,40369.0,3.3742]
[1610189417462,3.5877,40391.0,40370.0,0.01925633]
[1610189419065,0.13632608,40376.0,40370.0,0.01925633]
[1610189421068,0.13632608,40371.0,40370.0,0.01925633]
[1610189422970,0.07676,40387.0,40370.0,0.01925633]
[1610189423171,0.13632608,40383.0,40376.0,0.13632608]
[1610189423572,0.13632608,40383.0,40378.0,3.2641]
[1610189423971,0.13632608,40383.0,40379.0,0.0190119]
[1610189424172,0.13632608,40383.0,40379.0,0.01925384]
[1610189425075,0.13632608,40383.0,40382.0,0.13632608]
[1610189425374,0.13632608,40383.0,40382.0,2.94872608]
[1610189425578,0.13632608,40383.0,40382.0,2.96797736]
[1610189426979,0.00296292,40414.0,40382.0,2.96797736]
[1610189427180,0.2968,40414.0,40388.0,0.13632608]
[1610189427383,0.00296439,40415.0,40400.0,0.5181]
[1610189427582,0.00296439,40415.0,40389.0,0.01924913]
[1610189427782,0.08758,40415.0,40403.0,3.8319]
[1610189427983,0.08758,40415.0,40404.0,0.00024188]
[1610189428583,0.08758,40415.0,40403.0,0.00024188]
[1610189428784,0.08758,40415.0,40405.0,0.00024188]
[1610189428984,0.08758,40415.0,40404.0,0.00024188]
[1610189429188,0.13632608,40405.0,40404.0,0.00024188]
[1610189429386,0.13632608,40405.0,40401.0,0.00024188]
[1610189429585,0.13632608,40405.0,40404.0,0.00024188]
[1610189429789,0.13632608,40405.0,40402.0,0.00024188]
[1610189429986,0.13632608,40405.0,40404.0,4.0824]
[1610189430186,0.13632608,40405.0,40404.0,4.08264186]
[1610189433091,0.08758,40415.0,40404.0,4.08264186]
[1610189433092,0.08758,40415.0,40404.0,4.21896794]
[1610189433293,0.00296773,40437.0,40404.0,4.23796363]
[1610189433492,0.00296801,40438.0,40405.0,0.01923708]
[1610189433893,0.00720802,40439.0,40405.0,0.01923708]
[1610189433894,0.00296838,40439.0,40405.0,0.01923708]
[1610189434297,0.00296822,40438.0,40405.0,0.01923708]
[1610189434495,0.08587822,40438.0,40422.0,2.912]
[1610189434697,0.08291,40438.0,40422.0,2.912]
[1610189434895,0.08291,40438.0,40423.0,0.00024175]
[1610189435096,0.13632608,40424.0,40423.0,0.00024175]
[1610189435295,0.20893608,40424.0,40423.0,0.00024175]
[1610189436295,0.20893608,40424.0,40421.0,2.98]
[1610189436495,0.20893608,40424.0,40415.0,0.00024173]
[1610189436699,0.20893608,40424.0,40405.0,3.3862]
[1610189436898,0.20893608,40424.0,40406.0,0.00024175]
[1610189437097,0.13632608,40407.0,40406.0,0.00024175]
[1610189437497,0.21074608,40407.0,40406.0,3.7872]
[1610189437698,0.21074608,40407.0,40406.0,0.00024175]
[1610189437900,0.21074608,40407.0,40406.0,3.34734175]
[1610189438100,0.21074608,40407.0,40406.0,3.3471]
[1610189438299,0.21074608,40407.0,40406.0,3.34734175]
[1610189440303,0.21074608,40407.0,40406.0,3.3471]
[1610189441405,0.21074608,40407.0,40406.0,3.34734002]
[1610189442008,0.21074608,40407.0,40406.0,3.3471]
[1610189442206,0.21074608,40407.0,40406.0,3.34734001]
[1610189444808,0.21074608,40407.0,40406.0,0.00024001]
[1610189445209,0.21074608,40407.0,40393.0,3.3218]
[1610189445410,0.21074608,40407.0,40406.0,0.00024003]
[1610189445610,0.67174608,40407.0,40394.0,0.00024003]
[1610189445810,0.21074608,40407.0,40394.0,0.00024003]
[1610189446010,2.9027,40404.0,40384.0,0.10121]
[1610189446209,2.9027,40404.0,40395.0,0.00024004]
[1610189446410,2.9027,40404.0,40385.0,0.00024004]
[1610189446816,0.21074608,40407.0,40396.0,0.00024007]
[1610189447015,0.21074608,40407.0,40386.0,0.00024007]
[1610189447213,0.13632608,40387.0,40386.0,0.00024007]
[1610189447415,0.13632608,40387.0,40384.0,0.00024011]
[1610189447615,4.10562608,40387.0,40384.0,0.00024011]
[1610189447816,4.10562608,40387.0,40370.0,3.9889]
[1610189447817,4.10562608,40387.0,40386.0,0.00024011]
[1610189448012,4.10562608,40387.0,40385.0,0.00024014]
[1610189448410,4.10562608,40387.0,40386.0,0.00024014]
[1610189448810,4.10562608,40387.0,40377.0,0.00024018]
[1610189449010,4.10562608,40387.0,40386.0,0.00024018]
[1610189449411,4.10562608,40387.0,40371.0,0.15492882]
[1610189449613,4.10562608,40387.0,40386.0,0.0002402]
[1610189449814,4.10562608,40387.0,40372.0,0.0186023]
[1610189450013,0.13632608,40387.0,40372.0,0.0186023]
[1610189450212,0.13632608,40387.0,40386.0,0.00024018]
[1610189450412,0.13632608,40387.0,40373.0,0.00024018]
[1610189450612,3.0915,40374.0,40372.0,0.01836212]
[1610189451013,3.0915,40374.0,40373.0,0.00024018]
[1610189451214,3.22782608,40374.0,40372.0,0.0186023]
[1610189454114,3.22782608,40374.0,40357.0,0.01860068]
[1610189454314,3.22782608,40374.0,40373.0,0.0186007]
[1610189454615,3.22782608,40374.0,40358.0,0.01860091]
[1610189454815,3.22782608,40374.0,40373.0,0.01860075]
[1610189455215,3.22782608,40374.0,40362.0,0.13632608]
[1610189455416,3.22782608,40374.0,40373.0,0.01860061]
[1610189455618,3.22782608,40374.0,40363.0,0.01836131]
[1610189456018,3.22782608,40374.0,40373.0,0.00024018]
[1610189456217,3.22782608,40374.0,40364.0,0.01860116]
[1610189456417,3.22782608,40374.0,40363.0,0.01860114]
[1610189456817,3.22782608,40374.0,40365.0,0.01860164]
[1610189457017,3.22782608,40374.0,40364.0,0.0186017]
[1610189457217,0.13632608,40367.0,40366.0,0.01860058]
[1610189457417,0.13632608,40367.0,40366.0,0.00024018]
[1610189457619,0.13632608,40367.0,40365.0,0.01860066]
[1610189457818,0.13632608,40367.0,40363.0,0.01860054]
[1610189458018,0.13632608,40367.0,40366.0,0.01860044]
[1610189458220,0.13632608,40367.0,40364.0,0.01860044]
[1610189458618,0.13632608,40367.0,40363.0,0.01860046]
[1610189458818,0.13632608,40367.0,40365.0,0.01860053]
[1610189459019,0.13632608,40367.0,40364.0,0.01860053]
[1610189459318,0.13632608,40367.0,40363.0,0.01860057]
[1610189459719,0.13632608,40367.0,40365.0,0.01860116]
[1610189459919,0.13632608,40367.0,40363.0,0.01860106]
[1610189460119,0.13632608,40367.0,40366.0,0.01860124]
[1610189460318,0.13632608,40367.0,40366.0,0.00024018]
[1610189460518,0.13632608,40367.0,40364.0,0.01860135]
[1610189460719,0.13632608,40367.0,40366.0,0.01860135]
[1610189460919,0.13632608,40367.0,40365.0,0.01860156]
[1610189461121,0.13632608,40367.0,40366.0,0.01860156]
[1610189461521,0.13632608,40367.0,40363.0,0.01860152]
[1610189461722,0.13632608,40367.0,40366.0,0.01860155]
[1610189461921,0.13632608,40367.0,40364.0,0.01860153]
[1610189462322,0.13632608,40367.0,40366.0,0.01860136]
[1610189462524,0.13632608,40367.0,40365.0,0.01860184]
[1610189462725,0.13632608,40367.0,40366.0,0.01860151]
[1610189463226,0.13632608,40367.0,40363.0,0.01860097]
[1610189470438,0.72102608,40367.0,40363.0,0.01860097]
[1610189470641,0.13632608,40367.0,40363.0,0.01860097]
[1610189470839,4.1448,40364.0,40363.0,0.00024018]
[1610189471039,4.1448,40364.0,40357.0,0.01831832]
[1610189471240,0.07421,40380.0,40363.0,0.00023943]
[1610189471440,4.1426,40376.0,40358.0,0.00023943]
[1610189471640,0.13632608,40359.0,40357.0,0.01808706]
[1610189472040,0.13632608,40359.0,40357.0,0.01832651]
[1610189472241,0.13632608,40359.0,40353.0,0.01832775]
[1610189472440,0.13632608,40359.0,40358.0,0.00023945]
[1610189472839,0.13632608,40359.0,40347.0,0.01832823]
[1610189473040,0.13632608,40359.0,40358.0,0.00023945]
[1610189473242,0.13632608,40359.0,40348.0,0.00023945]
[1610189473640,2.9858,40365.0,40358.0,0.00023945]
[1610189473841,2.9858,40365.0,40349.0,0.00023945]
[1610189474040,2.9858,40365.0,40359.0,0.00023947]
[1610189474341,2.9858,40365.0,40350.0,0.00023947]
[1610189474543,2.9858,40365.0,40360.0,0.00023947]
[1610189474942,2.9858,40365.0,40347.0,0.01832825]
[1610189475142,2.9858,40365.0,40361.0,0.00023947]
[1610189475342,2.9858,40365.0,40348.0,0.00023947]
[1610189475743,2.9858,40365.0,40362.0,0.00023947]
[1610189475941,2.9858,40365.0,40349.0,0.00023947]
[1610189476141,2.9858,40365.0,40347.0,0.01808878]
[1610189476142,2.9858,40365.0,40363.0,0.00023947]
[1610189476544,2.9858,40365.0,40350.0,0.00023947]
[1610189476744,2.9858,40365.0,40347.0,0.01808878]
[1610189476944,2.9858,40365.0,40347.0,0.01832826]
[1610189477645,0.13632608,40348.0,40347.0,0.01832826]
[1610189478248,0.13632608,40348.0,40344.0,0.01833098]
[1610189478645,0.13632608,40348.0,40347.0,0.01833145]
[1610189478846,0.13632608,40348.0,40345.0,0.01833167]
[1610189479047,0.13632608,40348.0,40347.0,0.0183316]
[1610189479448,0.13632608,40348.0,40346.0,0.018332]
[1610189479648,0.13632608,40348.0,40347.0,0.01833198]
[1610189480247,0.13632608,40348.0,40344.0,0.01833195]
[1610189480548,0.13632608,40348.0,40347.0,0.01833193]
[1610189480749,0.13632608,40348.0,40345.0,0.01833264]
[1610189480947,0.13632608,40348.0,40343.0,0.08269]
[1610189480948,0.13632608,40348.0,40347.0,0.018333]
[1610189481148,0.13632608,40348.0,40346.0,0.01833264]
[1610189481549,0.13632608,40348.0,40347.0,0.01833256]
[1610189481749,0.13632608,40348.0,40347.0,0.01809306]
[1610189481949,0.13632608,40348.0,40343.0,0.08269]
[1610189481950,0.13632608,40348.0,40344.0,0.01833174]
[1610189482350,0.13632608,40348.0,40347.0,0.01833218]
[1610189482553,0.13632608,40348.0,40345.0,0.01833196]
[1610189482751,0.13632608,40348.0,40347.0,0.01833155]
[1610189483151,0.13632608,40348.0,40346.0,0.01833198]
[1610189483353,0.13632608,40348.0,40347.0,0.01833198]
[1610189483954,0.13632608,40348.0,40344.0,0.01833188]
[1610189489058,2.877,40345.0,40344.0,0.01833188]
[1610189489660,2.877,40345.0,40332.0,0.01833454]
[1610189489859,2.877,40345.0,40344.0,0.00023952]
[1610189490259,0.13632608,40348.0,40333.0,0.09090476]
[1610189490460,0.13632608,40348.0,40344.0,0.00023952]
[1610189490659,0.13632608,40348.0,40336.0,3.2475]
[1610189491060,0.13632608,40348.0,40345.0,0.00023952]
[1610189491260,0.13632608,40348.0,40337.0,0.0183349]
[1610189491460,0.13632608,40348.0,40346.0,0.00023952]
[1610189491860,0.13632608,40348.0,40338.0,0.00023952]
[1610189492061,0.13632608,40348.0,40347.0,0.00023952]
[1610189492261,0.58212608,40348.0,40339.0,0.00023952]
[1610189492462,0.13632608,40348.0,40347.0,0.00023952]
[1610189492862,3.92642608,40348.0,40340.0,0.00023952]
[1610189493064,0.13632608,40348.0,40347.0,0.00023952]
[1610189493262,3.51942608,40348.0,40341.0,0.00023952]
[1610189493666,0.13632608,40342.0,40334.0,0.01833543]
[1610189493864,0.13632608,40342.0,40336.0,0.01809599]
[1610189494064,0.13632608,40342.0,40335.0,0.01833548]
[1610189494363,0.13632608,40342.0,40337.0,0.00023953]
[1610189494563,0.5659,40339.0,40337.0,0.00023953]
[1610189494764,0.5659,40339.0,40336.0,0.00023953]
[1610189494965,0.5659,40339.0,40333.0,0.07257]
[1610189494966,0.5659,40339.0,40334.0,0.01833553]
[1610189495164,0.5659,40339.0,40337.0,0.00023953]
[1610189495567,0.5659,40339.0,40335.0,0.00023953]
[1610189495765,0.13632608,40336.0,40334.0,0.01833553]
[1610189495965,0.13632608,40336.0,40334.0,0.018096]
[1610189496366,0.13632608,40336.0,40335.0,0.00023954]
[1610189496567,0.13632608,40336.0,40334.0,0.01833554]
[1610189496766,0.13632608,40336.0,40335.0,0.00023954]
[1610189497268,0.13632608,40336.0,40334.0,0.01833554]
[1610189497569,0.13632608,40336.0,40335.0,0.00023954]
[1610189498169,0.13632608,40336.0,40334.0,0.01833556]
[1610189498369,0.13632608,40336.0,40335.0,0.00023956]
[1610189498772,0.13632608,40336.0,40334.0,3.462796]
[1610189498971,0.13632608,40336.0,40335.0,0.00023957]
[1610189499171,0.13632608,40336.0,40335.0,0.01833876]
[1610189499772,0.13632608,40336.0,40335.0,4.04346484]
[1610189499972,0.13632608,40336.0,40335.0,4.02512608]
[1610189500174,0.13632608,40336.0,40335.0,4.04346143]
[1610189500572,0.13632608,40336.0,40335.0,4.0830885]
[1610189500773,0.0844,40357.0,40335.0,4.0830885]
[1610189500972,0.5517,40383.0,40335.0,0.19428957]
[1610189501173,0.2729,40383.0,40355.0,3.41]
[1610189501374,0.00295235,40386.0,40336.0,0.01849299]
[1610189501375,0.00295235,40386.0,40343.0,0.09871]
[1610189501572,0.00295659,40390.0,40356.0,0.01873084]
[1610189501773,0.00295659,40390.0,40368.0,3.3012]
[1610189501974,0.2979,40391.0,40368.0,3.3012]
[1610189502375,0.2979,40391.0,40369.0,0.00024054]
[1610189503777,0.2979,40391.0,40370.0,0.13632608]
[1610189504376,0.2979,40391.0,40371.0,0.00024051]
[1610189504779,0.09738,40394.0,40371.0,0.00024051]
[1610189505179,3.0341,40387.0,40371.0,0.00024051]
[1610189505380,0.11233,40388.0,40371.0,0.00024051]
[1610189505779,3.521,40368.0,40363.0,0.01872229]
[1610189505980,3.521,40368.0,40353.0,0.08332]
[1610189506180,3.521,40368.0,40364.0,0.00024055]
[1610189506582,3.521,40368.0,40344.0,0.01873036]
[1610189506783,3.521,40368.0,40365.0,0.00024057]
[1610189506982,0.13632608,40372.0,40345.0,0.0002406]
[1610189507185,0.13632608,40372.0,40359.0,3.6139]
[1610189507382,0.13632608,40372.0,40366.0,0.0002406]
[1610189507581,0.13632608,40372.0,40359.0,3.6139]
[1610189507782,0.13632608,40360.0,40359.0,3.6139]
[1610189508282,0.13632608,40360.0,40359.0,3.61414059]
[1610189508482,0.22588608,40360.0,40359.0,0.00024059]
[1610189508887,0.22588608,40360.0,40350.0,2.9912]
[1610189509086,0.22588608,40360.0,40359.0,0.00024059]
[1610189509486,0.22588608,40360.0,40351.0,0.00024059]
[1610189509688,0.22588608,40360.0,40359.0,0.00024059]
[1610189509888,0.22588608,40360.0,40352.0,0.00024059]
[1610189510288,0.22588608,40360.0,40351.0,0.00024059]
[1610189510487,0.22588608,40360.0,40353.0,0.00024059]
[1610189510687,0.22588608,40360.0,40352.0,0.00024059]
[1610189511088,0.22588608,40360.0,40354.0,0.0002406]
[1610189511287,0.22588608,40360.0,40353.0,0.0002406]
[1610189511488,0.22588608,40360.0,40355.0,0.0002406]
[1610189511886,0.22588608,40360.0,40351.0,0.01849215]
[1610189511887,0.22588608,40360.0,40354.0,0.0002406]
[1610189512088,0.22588608,40360.0,40356.0,0.00024058]
[1610189512289,0.22588608,40360.0,40355.0,0.00024058]
[1610189512687,0.22588608,40360.0,40357.0,0.00024058]
[1610189512888,0.22588608,40360.0,40356.0,0.00024059]
[1610189513088,0.22588608,40360.0,40357.0,0.00024058]
[1610189513588,0.22588608,40360.0,40351.0,0.01873273]
[1610189513890,0.08956,40360.0,40358.0,0.00024058]
[1610189514089,0.33600031,40368.0,40358.0,0.00024058]
[1610189514290,0.33600031,40368.0,40352.0,0.00024058]
[1610189514489,0.33600031,40368.0,40359.0,0.00024058]
[1610189514891,0.33600031,40368.0,40351.0,0.01873273]
[1610189515692,0.33600031,40368.0,40357.0,3.0664]
[1610189515893,0.33600031,40368.0,40364.0,0.13632608]
[1610189516093,0.33600031,40368.0,40366.0,0.5703]